[Event "Romanian Team Blitz Open 2022"]
[Site "Sebes"]
[Date "2022.12.04"]
[Round "8.20"]
[White "Craciun, Sasha-Matei"]
[Black "Mainescu, Andrei-Cristian"]
[Result "1/2-1/2"]
[ECO "B77"]
[WhiteElo "2001"]
[BlackElo "1860"]
[Annotator "TA"]
[PlyCount "77"]
[EventDate "2022.12.04"]
[EventType "blitz"]
[EventCountry "ROU"]
[SourceTitle "playchess.com"]
[Source "ChessBase"]
[SourceQuality "1"]
[TimeControl "180+2"]

{[%evp 23,77,35,31,39,33,27,64,0,0,-18,0,-10,0,0,5,-8,0,0,0,0,17,0,24,0,37,0,2,0,10,0,29,26,27,27,33,0,0,0,0,-17,-24,-151,-122,-118,-118,-173,-168,-161,-117,-29990,-29991,-29991,-554,-2155,0,-29991]} 1. e4 {[%emt 0:00:01]} c5 {[%emt 0:03:04]} 2. Nf3 {[%emt 0:00:02]} d6 {[%emt 0:00:00]} 3. d4 {[%emt 0:00:00]} cxd4 {[%emt 0:00:00]} 4. Nxd4 {[%emt 0:00:01]} Nf6 {[%emt 0:00:00]} 5. Nc3 {[%emt 0:00:01]} g6 {[%emt 0:00:00]} 6. Be3 {[%emt 0:00:02]} Bg7 {[%emt 0:00:00]} 7. f3 {[%emt 0:00:01]} O-O {[%emt 0:00:00]} 8. Qd2 {[%emt 0:00:03]} Nc6 {[%emt 0:00:00]} 9. Bc4 {[%emt 0:00:02]} Nxd4 {[%emt 0:00:00]} 10. Bxd4 {[%emt 0:00:02]} Be6 {[%emt 0:00:00]} 11. Bxe6 {[%emt 0:00:04]} fxe6 {[%emt 0:00:00]} 12. O-O-O {[%emt 0:00:03]} Qa5 {[%emt 0:00:00]} 13. Kb1 {[%emt 0:00:04] B77: Sicilian Dragon: Yugoslav Attack, 9 Bc4 sidelines.} Rac8 {[%emt 0:00:00]} 14. h4 {[%emt 0:00:08]} (14. f4 {simplifies} e5 15. fxe5 dxe5 16. Be3) 14... Rc4 {[%emt 0:00:00][%cal Of6e4]} 15. Bxf6 {[%emt 0:00:46]} ({White should play} 15. Qe2 $14 Rfc8 16. e5 dxe5 17. Bxe5) 15... Bxf6 $11 {[%emt 0:00:13]} 16. Nd5 {[%emt 0:00:01] Against Qb6} Qxd2 {[%emt 0:00:00]} 17. Nxf6+ {[%emt 0:00:01] [#]} Rxf6 $146 {[%emt 0:00:03]} ({Predecessor:} 17... Kf7 18. Rxd2 Kxf6 19. Rd3 Rfc8 20. c3 h5 21. Re1 R4c5 22. g3 Rg8 23. f4 e5 24. fxe5+ Rxe5 {½-½ (40) Lipiak,M (1642)-Kabacinski,K (1505) Suwalki 2015}) 18. Rxd2 {[%emt 0:00:01][%mdl 4096] Endgame KRR-KRR} a6 {[%emt 0:00:03]} 19. h5 {[%emt 0:00:07]} Rc5 {[%emt 0:00:06]} 20. hxg6 {[%emt 0:00:02]} Rxg6 {[%emt 0:00:02]} 21. c3 {[%emt 0:00:04]} Kg7 {[%emt 0:00:01]} 22. Kc2 {[%emt 0:00:00]} Rcg5 {[%emt 0:00:04]} 23. Rh2 {[%emt 0:00:06]} h6 {[%emt 0:00:03]} 24. c4 {[%emt 0:00:03]} b5 {[%emt 0:00:04]} 25. cxb5 {[%emt 0:00:02]} Rxb5 {[%emt 0:00:09]} 26. Rd4 {[%emt 0:00:05]} Rbg5 {[%emt 0:00:00]} 27. g4 {[%emt 0:00:02]} Rf6 {[%emt 0:00:00]} 28. Rh3 {[%emt 0:00:03]} Rc5+ {[%emt 0:00:00]} 29. Kd2 {[%emt 0:00:01]} Rf8 {[%emt 0:00:00]} 30. Ra4 {[%emt 0:00:13]} a5 {[%emt 0:00:02]} 31. Rh5 {[%emt 0:00:03] [#] Strongly threatening Rxc5.} e5 {[%emt 0:00:04]} 32. Rf5 {[%emt 0:00:34]} (32. Ke3 $11 {remains equal.}) 32... Rb8 $17 {[%emt 0:00:02]} 33. b3 {[%emt 0:00:02]} Rbc8 {[%emt 0:00:01]} 34. Ke1 {[%emt 0:00:15]} (34. Ke2 $17) 34... Rc1+ $19 {[%emt 0:00:01]} 35. Kf2 {[%emt 0:00:01]} R8c2+ {[%emt 0:00:02]} 36. Kg3 $2 {[%emt 0:00:01][%mdl 8192] [#]} (36. Ke3 $17) 36... Rg1+ {[%emt 0:00:01]} 37. Kh3 {[%emt 0:00:00]} Rh1+ {[%emt 0:00:02]} (37... Rgg2 $142 38. f4 Rge2 39. Kh4 Rc3 40. Rg5+ Kf6 41. Rf5+ Kg6 42. Rf6+ exf6 43. f5+ Kf7 44. g5 Rh2+ 45. Kg4 h5#) 38. Kg3 {[%emt 0:00:01]} Rg1+ {[%emt 0:00:01]} (38... e6 $19 39. Rxe5 dxe5 40. Rxa5 Rg1+ 41. Kh3 Rf2 42. Rc5 Kf6 43. Rc8 Rgg2 44. Rf8+ Kg5 45. f4+ exf4 46. Rg8+ Kf6 47. g5+ Ke5 48. gxh6 Rxg8 49. a4 Rg3+ 50. Kh4 Rh2#) 39. Kh3 {[%emt 0:00:01][%mdl 32768] Weighted Error Value: White=0.55/Black=0.54. An unexpected result.} 1/2-1/2

[Event "Romanian Team Blitz Open 2022"]
[Site "Sebes"]
[Date "2022.12.04"]
[Round "8.21"]
[White "Macarie, Maia-Elisabeta"]
[Black "Dragomirescu, Robin-Alexandru"]
[Result "0-1"]
[ECO "D02"]
[WhiteElo "1100"]
[BlackElo "2337"]
[Annotator "TA"]
[PlyCount "96"]
[EventDate "2022.12.04"]
[EventType "blitz"]
[EventCountry "ROU"]
[SourceTitle "playchess.com"]
[Source "ChessBase"]
[SourceQuality "1"]
[TimeControl "180+2"]

{[%evp 9,95,15,42,7,5,7,52,-3,66,0,75,-30,38,-5,-6,-38,-27,-86,-47,-102,-100,-92,-110,-250,-241,-250,-267,-255,-222,-434,-433,-440,-412,-450,-439,-439,-434,-452,-447,-447,-443,-443,-436,-457,-436,-446,-429,-420,-385,-394,-378,-379,-377,-370,-364,-1479,-1438,-2306,-2324,-2239,-2261,-2063,-1836,-6103,-5270,-6303,-6215,-29979,-29980,-29983,-29984,-29984,-29985,-29986,-29987,-29989,-29990,-29990,-29991,-29991,-29992,-29994,-29995,-29996,-29996,-29996,-29997,-29999]} 1. d4 {[%emt 0:00:02]} a6 {[%emt 0:00:04]} 2. Bf4 {[%emt 0:00:01]} d5 {[%emt 0:00:07]} 3. Nf3 {[%emt 0:00:01]} c5 {[%emt 0:00:11]} 4. c3 {[%emt 0:00:02]} Nf6 {[%emt 0:00:06]} 5. e3 {[%emt 0:00:01] [#]} Nh5 $146 {[%emt 0:00:15]} ({Predecessor:} 5... cxd4 6. exd4 Nc6 7. Bd3 Bg4 8. Nbd2 g6 9. h3 Bxf3 10. Nxf3 Bg7 11. O-O O-O 12. a4 e6 13. Qe2 Rc8 14. Nd2 Nd7 15. Nb3 Re8 16. Rfd1 Qb6 17. Bc2 Bf8 18. a5 Qd8 19. Qf3 Qf6 20. Qg3 Be7 21. Re1 Qh4 22. Qe3 Bd8 23. Re2 Qf6 24. Qg3 Qh4 25. Qe3 Qf6 {½-½ (25) Pham,L (2341)-Vo,T (2319) Hanoi 2017}) 6. Bg3 {[%emt 0:00:01] D02: 1 d4 d5 2 Nf3 sidelines, including 2...Nf6 3 g3 and 2...Nf6 3 Bf4.} Nxg3 {[%emt 0:00:02]} 7. hxg3 {[%emt 0:00:01]} Nc6 {[%emt 0:00:03]} 8. Nbd2 {[%emt 0:00:02]} (8. dxc5 $14 e6 9. b4) 8... Bf5 {[%emt 0:00:15]} (8... cxd4 $11 9. cxd4 Bf5) 9. Be2 {[%emt 0:00:15]} (9. dxc5 $14 e5 10. Qa4) 9... h6 {[%emt 0:00:04]} (9... e6 $11) 10. Qb3 {[%emt 0:00:15]} (10. dxc5 $16 e5 11. Qa4) 10... Qd7 {[%emt 0:00:25]} (10... e6 $11) 11. Nh4 {[%emt 0:00:13]} Bh7 {[%emt 0:00:03]} 12. Nhf3 {[%emt 0:00:05]} e6 {[%emt 0:00:02]} 13. Bd1 {[%emt 0:00:04]} (13. c4 $11 {keeps the balance.}) 13... Be7 {[%emt 0:00:05]} 14. c4 {[%emt 0:00:05]} ({White should play} 14. dxc5 $15 Bxc5 15. Bc2) 14... cxd4 $17 {[%emt 0:00:10]} 15. cxd5 {[%emt 0:00:13]} dxe3 {[%emt 0:00:11]} 16. fxe3 {[%emt 0:00:28] This move loses the game for White.} (16. dxc6 $17 exd2+ 17. Nxd2 bxc6 18. Bc2) 16... exd5 $19 {[%emt 0:00:02]} 17. Bc2 {[%emt 0:00:08]} Bxc2 {[%emt 0:00:07]} 18. Qxc2 {[%emt 0:00:01]} Rc8 {[%emt 0:00:04] [#] ...Nb4 is the strong threat.} 19. Qd3 $2 {[%emt 0:00:09]} (19. O-O) 19... Nb4 {[%emt 0:00:02]} 20. Qb3 {[%emt 0:00:21]} Nc2+ {[%emt 0:00:02]} 21. Kf2 {[%emt 0:00:00]} Nxa1 {[%emt 0:00:02]} 22. Rxa1 {[%emt 0:00:01]} O-O {[%emt 0:00:02]} 23. Nd4 {[%emt 0:00:11]} Bf6 {[%emt 0:00:02]} 24. N2f3 {[%emt 0:00:04]} Bxd4 {[%emt 0:00:01]} 25. Nxd4 {[%emt 0:00:07]} Rfe8 {[%emt 0:00:02]} 26. Re1 {[%emt 0:00:06]} b5 {[%emt 0:00:06]} 27. Qd3 {[%emt 0:00:08]} Qd6 {[%emt 0:00:05]} 28. Qf5 {[%emt 0:00:18]} Rc4 {[%emt 0:00:05]} 29. Qf4 {[%emt 0:00:07]} Qxf4+ {[%emt 0:00:04]} 30. gxf4 {[%emt 0:00:02][%mdl 4096] Endgame KRR-KRN} g6 {[%emt 0:00:23][%cal Oc4d4] Strongly threatening ...Rxd4!} 31. Re2 {[%emt 0:00:01]} Kg7 {[%emt 0:00:01][%cal Oc4d4] Hoping for ...Rxd4!} 32. Kf3 $2 {[%emt 0:00:01] [#]} (32. a3) 32... Rxd4 $1 {[%emt 0:00:09]} 33. exd4 {[%emt 0:00:03]} (33. Kf2 Rde4) 33... Rxe2 {[%emt 0:00:02]} 34. Kxe2 {[%emt 0:00:02] KP-KP} h5 {[%emt 0:00:04]} 35. Kf3 {[%emt 0:00:01]} Kf6 {[%emt 0:00:20] Threatens to win with ...Kf5.} 36. g3 {[%emt 0:00:07]} Kf5 {[%emt 0:00:02]} 37. a3 {[%emt 0:00:05]} a5 {[%emt 0:00:02] White must now prevent ...a4.} 38. b3 {[%emt 0:00:02]} b4 {[%emt 0:00:02] Black mates.} 39. a4 {[%emt 0:00:03]} f6 {[%emt 0:00:01]} 40. Kg2 {[%emt 0:00:06]} Ke4 {[%emt 0:00:02]} 41. Kh3 {[%emt 0:00:05]} Kxd4 {[%emt 0:00:02]} 42. Kg2 {[%emt 0:00:01]} Ke3 {[%emt 0:00:02]} 43. Kf1 {[%emt 0:00:05]} d4 {[%emt 0:00:08]} 44. f5 {[%emt 0:00:07]} d3 {[%emt 0:00:03]} 45. fxg6 {[%emt 0:00:06]} d2 {[%emt 0:00:02]} 46. g7 {[%emt 0:00:03]} d1=Q+ {[%emt 0:00:03]} (46... d1=B $2 47. g8=Q Bf3 48. Qc4 $18) 47. Kg2 {[%emt 0:00:01]} Qf3+ {[%emt 0:00:03]} 48. Kh3 {[%emt 0:00:01]} Qh1# {[%emt 0:00:18] Weighted Error Value: White=0.73/Black=0.13 (very precise)} 0-1

[Event "Romanian Team Blitz Open 2022"]
[Site "Sebes"]
[Date "2022.12.04"]
[Round "8.22"]
[White "Ionescu, Mihai"]
[Black "Burja-Udrea, Razvan-Andrei"]
[Result "1-0"]
[ECO "E01"]
[WhiteElo "2243"]
[BlackElo "1365"]
[Annotator "TA"]
[PlyCount "111"]
[EventDate "2022.12.04"]
[EventType "blitz"]
[EventCountry "ROU"]
[SourceTitle "playchess.com"]
[Source "ChessBase"]
[SourceQuality "1"]
[TimeControl "180+2"]

{[%evp 12,111,9,16,61,60,108,102,112,99,106,70,77,72,71,74,70,75,86,70,75,78,76,69,70,89,71,29,218,218,245,232,224,232,235,235,325,320,319,315,309,305,345,343,349,346,341,341,340,321,338,326,327,312,388,382,380,364,498,497,511,510,525,525,517,517,503,495,544,517,615,611,598,584,972,971,1052,1015,1254,1253,1147,1141,1125,1114,1082,1002,1091,1061,1021,1011,1652,1416,29974,29976,29975,29977,29977,29977,29977,29978,29978,29979]} 1. Nf3 {[%emt 0:00:04]} d5 {[%emt 0:00:01]} 2. d4 {[%emt 0:00:02]} e6 {[%emt 0:00:01]} 3. c4 {[%emt 0:00:02]} Nf6 {[%emt 0:00:03]} 4. g3 {[%emt 0:00:02]} c6 {[%emt 0:00:04]} 5. Qc2 {[%emt 0:00:03]} Be7 {[%emt 0:00:03]} 6. Bg2 {[%emt 0:00:01]} Nbd7 {[%emt 0:00:04]} 7. O-O {[%emt 0:00:03]} Nb6 {[%emt 0:00:07] E01: Catalan: Early deviations.} 8. b3 {[%emt 0:00:15] [#]} Bd7 $146 {[%emt 0:00:05]} (8... Nbd7 $14) ({Predecessor:} 8... O-O 9. Nbd2 Re8 10. Rd1 Nbd7 11. e4 Nxe4 12. Nxe4 dxe4 13. Qxe4 Nf6 14. Qe2 Qc7 {1-0 (52) Le,T (1674)-Nguyen,Q (1875) Bac Giang 2018}) 9. c5 $16 {[%emt 0:00:19]} Nc8 {[%emt 0:00:01] White is better.} 10. Bb2 {[%emt 0:00:01]} b6 {[%emt 0:00:01]} 11. b4 {[%emt 0:00:02]} a5 {[%emt 0:00:07] [#]} 12. a3 $1 {[%emt 0:00:02]} axb4 {[%emt 0:00:01]} 13. axb4 {[%emt 0:00:01]} Rxa1 {[%emt 0:00:01]} 14. Bxa1 {[%emt 0:00:01]} bxc5 {[%emt 0:00:01]} 15. dxc5 {[%emt 0:00:11]} Na7 {[%emt 0:00:01]} 16. Qa4 {[%emt 0:00:20]} Nb5 {[%emt 0:00:01]} 17. Nc3 {[%emt 0:00:02]} Nxc3 {[%emt 0:00:02]} 18. Bxc3 {[%emt 0:00:02] Black must now prevent Ne5.} O-O {[%emt 0:00:02]} 19. Ra1 {[%emt 0:00:06][%cal Bf1a1,Ba1a7,Ba7d7,Bd7c7,Bc7c6,Bc6a6][%mdl 32] White is much more active.} Qc7 $2 {[%emt 0:00:02] This costs Black the game.} (19... Ne4 $11 20. Bb2 Qb8) 20. Qa7 $18 {[%emt 0:00:09]} Qb8 {[%emt 0:00:25]} 21. Qxb8 {[%emt 0:00:32]} Rxb8 {[%emt 0:00:02]} 22. Ra7 {[%emt 0:00:01]} Kf8 {[%emt 0:00:06]} 23. Bxf6 {[%emt 0:00:14]} Bxf6 {[%emt 0:00:02]} 24. Rxd7 {[%emt 0:01:15]} Rxb4 25. Rc7 {[%emt 0:00:00]} Ke8 {[%emt 0:00:19]} 26. Rxc6 {[%emt 0:00:00]} Kd7 {[%emt 0:00:01]} 27. Ra6 {[%emt 0:00:00]} Rb1+ {[%emt 0:00:06]} 28. Bf1 {[%emt 0:00:08]} Rc1 {[%emt 0:02:09]} 29. Ra7+ {[%emt 0:00:00]} Ke8 {[%emt 0:00:00]} 30. Rc7 {[%emt 0:00:00]} Bd8 {[%emt 0:00:00]} 31. Rc8 {[%emt 0:00:00]} Kd7 {[%emt 0:00:00]} 32. Ra8 {[%emt 0:00:00] And now Ne5+ would win.} Rxc5 {[%emt 0:00:00]} 33. Ne5+ {[%emt 0:00:00]} Ke7 {[%emt 0:00:00] [#]} 34. Nxf7 $1 {[%emt 0:00:00][%mdl 512]} Kxf7 {[%emt 0:00:00]} (34... Bb6 35. Ne5) 35. Rxd8 {[%emt 0:00:00][%mdl 4096] Endgame KRB-KR} Rc7 {[%emt 0:00:00]} 36. e3 {[%emt 0:00:00]} h6 {[%emt 0:00:00]} 37. Kg2 {[%emt 0:00:00]} Ke7 {[%emt 0:00:00]} 38. Ra8 {[%emt 0:00:00]} Rd7 {[%emt 0:00:00]} 39. Bd3 {[%emt 0:00:00]} e5 {[%emt 0:00:00]} 40. f4 {[%emt 0:00:00][%cal Bf2f4,Bf4f5][%mdl 32]} e4 {[%emt 0:00:00]} 41. Be2 {[%emt 0:00:00]} Kd6 {[%emt 0:00:26]} 42. g4 {[%emt 0:00:00]} g5 {[%emt 0:00:00]} 43. f5 {[%emt 0:00:00]} Ke5 {[%emt 0:00:00]} 44. Re8+ {[%emt 0:00:00]} Kf6 {[%emt 0:00:06]} 45. Re6+ {[%emt 0:00:00]} Kg7 {[%emt 0:00:00]} 46. Kf2 {[%emt 0:00:00]} Ra7 {[%emt 0:00:00]} 47. Rd6 {[%emt 0:00:00]} Ra5 {[%emt 0:00:00]} 48. Rb6 {[%emt 0:00:03]} Ra7 {[%emt 0:00:00]} 49. Rb5 {[%emt 0:00:02]} Rd7 {[%emt 0:00:00]} 50. Bd1 {[%emt 0:00:01]} Kf6 {[%emt 0:00:00]} 51. Bb3 {[%emt 0:00:01]} Ke5 {[%emt 0:00:00] [#]} 52. Rxd5+ $1 {[%emt 0:00:03] White mates.} Rxd5 {[%emt 0:00:00]} 53. Bxd5 {[%emt 0:00:01]} Kxd5 {[%emt 0:00:00]} 54. Ke2 {[%emt 0:00:01]} Ke5 {[%emt 0:00:00]} 55. Kd2 {[%emt 0:00:01]} h5 {[%emt 0:00:00]} 56. h3 {[%emt 0:00:01] Weighted Error Value: White=0.05 (flawless) /Black=0.34} 1-0

[Event "Romanian Team Blitz Open 2022"]
[Site "Sebes"]
[Date "2022.12.04"]
[Round "8.23"]
[White "Simina, Alexandru-Ioan"]
[Black "Dragomirescu, Calin"]
[Result "0-1"]
[ECO "E61"]
[WhiteElo "1244"]
[BlackElo "1971"]
[Annotator "TA"]
[PlyCount "70"]
[EventDate "2022.12.04"]
[EventType "blitz"]
[EventCountry "ROU"]
[SourceTitle "playchess.com"]
[Source "ChessBase"]
[SourceQuality "1"]
[TimeControl "180+2"]

{[%evp 14,69,27,0,47,-22,-23,-22,-19,-23,-4,-14,0,0,0,-26,-17,-25,-16,-7,5,3,4,0,-3,-7,0,-131,-131,-132,-14,-16,98,-374,-374,-340,-246,-3157,-2841,-2195,-1835,-1844,-1791,-29983,-29984,-29984,-5235,-1888,-1081,-29985,-29985,-29980,-29981,-29992,-29993,-29998,-29999,-29999]} 1. d4 {[%emt 0:00:03]} Nf6 {[%emt 0:00:01]} 2. c4 {[%emt 0:00:01]} g6 {[%emt 0:00:00]} 3. Nc3 {[%emt 0:03:04]} Bg7 4. Bf4 {[%emt 0:00:00]} O-O {[%emt 0:00:03]} 5. Nf3 {[%emt 0:00:00]} d6 {[%emt 0:00:01]} 6. e3 {[%emt 0:00:00]} b6 {[%emt 0:00:02]} 7. Be2 {[%emt 0:00:00]} Bb7 {[%emt 0:00:04]} 8. O-O {[%emt 0:00:00]} Nh5 {[%emt 0:00:04] E61: King's Indian: Early deviations for White, including Smyslov System.} (8... Ne4 $11) 9. Bg3 {[%emt 0:00:00]} (9. Bg5 $14) 9... Nxg3 $11 {[%emt 0:00:01]} 10. hxg3 {[%emt 0:00:00]} Nd7 {[%emt 0:00:04] [#] The position is equal.} 11. b4 $146 {[%emt 0:00:00]} ({Predecessor:} 11. e4 e5 12. d5 a5 13. a3 f5 14. exf5 Rxf5 15. Bd3 Rf8 16. Qd2 Nc5 17. Bc2 {0-1 (55) Iljushina,O (2054)-Alinasab,M (2325) Chess.com INT 2022}) 11... a5 {[%emt 0:00:05]} 12. a3 {[%emt 0:00:00]} e5 {[%emt 0:00:01]} 13. dxe5 {[%emt 0:00:00]} Nxe5 {[%emt 0:00:03]} 14. Nxe5 {[%emt 0:00:00]} Bxe5 {[%emt 0:00:05] This pair of bishops is nice.} 15. Rc1 {[%emt 0:00:00]} axb4 {[%emt 0:00:10]} 16. axb4 {[%emt 0:00:00]} Bg7 {[%emt 0:00:03]} 17. Qb3 {[%emt 0:00:00]} h5 {[%emt 0:00:04]} 18. b5 {[%emt 0:00:00]} h4 {[%emt 0:00:01] Hoping for ...hxg3.} 19. g4 {[%emt 0:00:00]} h3 {[%emt 0:00:09]} 20. gxh3 {[%emt 0:00:00]} (20. Nd5 $11) 20... Qh4 $17 {[%emt 0:00:02]} 21. Kh2 {[%emt 0:00:02]} Rae8 {[%emt 0:00:27] Black is more active.} (21... f5 $1 $17 {[%cal Rf5g4] ( -> ...fxg4)} 22. f4 (22. c5+ $2 Kh7 $19) 22... Rfe8) 22. Nd5 $11 {[%emt 0:00:06]} g5 {[%emt 0:00:16]} (22... f5 $11 23. Rc2 Re4) 23. f4 $2 {[%emt 0:00:16][%mdl 8192] [#] This costs White the game.} (23. Nxc7 Be5+ 24. f4 Bxf4+ $1 {[%mdl 512]} 25. Rxf4 gxf4 26. Nd5 Qf2+ 27. Kh1 Rxe3) (23. Qd3 $16) 23... Bxd5 $1 $19 {[%emt 0:00:07]} 24. cxd5 {[%emt 0:00:05]} gxf4 {[%emt 0:00:05]} 25. e4 $2 {[%emt 0:00:08]} (25. Rxf4 Be5 26. Rcf1) 25... Rxe4 {[%emt 0:00:14]} 26. Qf3 {[%emt 0:00:03]} Re3 {[%emt 0:00:07] aiming for ...Ra8.} 27. Qg2 {[%emt 0:00:03]} Rg3 {[%emt 0:00:07]} 28. Rxf4 {[%emt 0:00:04]} Rxg2+ {[%emt 0:00:06]} 29. Kxg2 {[%emt 0:00:02]} Be5 {[%emt 0:00:04]} (29... Bh6 $142 30. Rcf1 Bxf4 31. Rxf4 Ra8 32. Rf3 Ra2 33. Rf2 Kg7 34. g5 Qd4 35. Kf1 Qe3 36. Kg2 Rxe2 37. Rxe2 Qxe2+ 38. Kg3 Kg6 39. Kf4 Kh5 40. g6 f5 41. Kg3 Kg5 42. h4+ Kxg6 43. Kh3 f4 44. h5+ Kh6 45. Kh4 Qxh5#) 30. Rf3 {[%emt 0:00:02]} Qh6 {[%emt 0:00:10]} 31. Rxc7 {[%emt 0:00:02]} Qd2 {[%emt 0:00:04][%csl LRd5,LRe2] Black mates.} 32. Rf2 {[%emt 0:00:01]} Bd4 {[%emt 0:00:04]} 33. Rc2 {[%emt 0:00:02]} Qxc2 {[%emt 0:00:07]} 34. Bf3 {[%emt 0:00:03]} Qxf2+ {[%emt 0:00:02]} 35. Kh1 {[%emt 0:00:02]} Qg1# {Weighted Error Value: White=1.03/Black=0.70} 0-1

[Event "Romanian Team Blitz Open 2022"]
[Site "Sebes"]
[Date "2022.12.04"]
[Round "8.24"]
[White "Santimbrean, Bogdan-Iacob"]
[Black "Simina, Andrei-Petru"]
[Result "1-0"]
[ECO "C55"]
[WhiteElo "1179"]
[BlackElo "1033"]
[Annotator "NA COMBH"]
[PlyCount "74"]
[EventDate "2022.12.04"]
[EventType "blitz"]
[EventCountry "ROU"]
[SourceTitle "playchess.com"]
[Source "ChessBase"]
[SourceQuality "1"]
[TimeControl "180+2"]

1. e4 {[%emt 0:00:02]} e5 {[%emt 0:00:00]} 2. Nf3 {[%emt 0:00:01]} Nc6 {[%emt 0:00:01]} 3. Bc4 {[%emt 0:03:05]} h6 4. c3 {[%emt 0:00:00]} Nf6 {[%emt 0:00:04]} 5. d3 {[%emt 0:00:00]} g6 {[%emt 0:00:06]} 6. Nbd2 {[%emt 0:00:00]} Bg7 {[%emt 0:00:01]} 7. O-O {[%emt 0:00:00]} d6 {[%emt 0:00:01]} 8. h3 {[%emt 0:00:00]} Be6 {[%emt 0:00:19]} 9. Bb5 {[%emt 0:00:00]} Bd7 {[%emt 0:00:02]} 10. Qe2 {[%emt 0:00:00]} a6 {[%emt 0:00:01]} 11. Ba4 {[%emt 0:00:00]} Qe7 {[%emt 0:00:06]} 12. Re1 {[%emt 0:00:00]} O-O-O {[%emt 0:00:02]} 13. Nf1 {[%emt 0:00:00]} d5 {[%emt 0:00:14]} 14. Bxc6 {[%emt 0:00:00]} Bxc6 {[%emt 0:00:02]} 15. exd5 {[%emt 0:00:00]} Bxd5 {[%emt 0:00:02]} 16. Qxe5 {[%emt 0:00:00]} Qxe5 17. Nxe5 {[%emt 0:00:00]} Nh5 {[%emt 0:00:27]} 18. d4 {[%emt 0:00:00]} Rhe8 {[%emt 0:00:11]} 19. Nh2 {[%emt 0:00:00]} f6 {[%emt 0:00:13]} 20. Nef3 {[%emt 0:00:00]} Rxe1+ {[%emt 0:00:24]} 21. Nxe1 {[%emt 0:00:00]} Re8 {[%emt 0:00:01]} 22. Bd2 {[%emt 0:00:00]} f5 {[%emt 0:00:17]} 23. Nef3 {[%emt 0:00:00]} Bxf3 {[%emt 0:00:02]} 24. Nxf3 {[%emt 0:00:00]} Re2 {[%emt 0:00:04]} 25. Re1 {[%emt 0:00:00]} Rxe1+ {[%emt 0:00:03]} 26. Nxe1 {[%emt 0:00:00]} g5 {[%emt 0:00:04]} 27. Nf3 {[%emt 0:00:00]} Nf6 {[%emt 0:00:03]} 28. h4 {[%emt 0:00:00]} f4 {[%emt 0:00:11]} 29. hxg5 {[%emt 0:00:00]} hxg5 {[%emt 0:00:00]} 30. Nxg5 {[%emt 0:00:00]} Nd5 {[%emt 0:00:32]} 31. Ne6 {[%emt 0:00:00]} Bh6 {[%emt 0:00:13]} 32. c4 {[%emt 0:00:00]} Nb6 {[%emt 0:00:10]} 33. b3 {[%emt 0:00:00]} Kd7 {[%emt 0:00:06]} 34. Nxf4 {[%emt 0:00:18]} Bxf4 {[%emt 0:00:05]} 35. Bxf4 {[%emt 0:00:01]} Kd8 {[%emt 0:00:01]} 36. g4 {[%emt 0:00:03]} Nd7 {[%emt 0:00:02]} 37. Be5 {[%emt 0:00:03]} Ke7 {[%emt 0:00:02]} 1-0